Workbook

Sheet ورقة1
A2: 1514 | B2: =A2*75% -> 1135.5 | C2: =A2*4.6% -> 69.644 | D2: =B2*0.08% -> 0.9084 | E2: =SUM(A2:B2) -> 2649.5 | F2: =SUM(C2:D2) -> 70.5524 | G2: =E2-F2 -> 2578.9476
A3: 1613 | B3: =A3*75% -> 1209.75 | C3: =A3*4.6% -> 74.198 | D3: =B3*0.08% -> 0.9678 | E3: =SUM(A3:B3) -> 2822.75 | F3: =SUM(C3:D3) -> 75.1658 | G3: =E3-F3 -> 2747.5842
A4: 1712 | B4: 1284 | C4: 78.752 | D4: 1.0272 | E4: 2996 | F4: 79.7792 | G4: 2916.2208
A5: 1811 | B5: 1358.25 | C5: 83.306 | D5: 1.0866 | E5: 3169.25 | F5: 84.3926 | G5: 3084.8574
A6: 1910 | B6: 1432.5 | C6: 87.86 | D6: 1.146 | E6: 3342.5 | F6: 89.006 | G6: 3253.494
A7: 2009 | B7: 1506.75 | C7: 92.414 | D7: 1.2054 | E7: 3515.75 | F7: 93.6194 | G7: 3422.1306
A8: 2108 | B8: 1581 | C8: 96.968 | D8: 1.2648 | E8: 3689 | F8: 98.2328 | G8: 3590.7672
A9: 2207 | B9: 1655.25 | C9: 101.522 | D9: 1.3242 | E9: 3862.25 | F9: 102.8462 | G9: 3759.4038
A10: 2306 | B10: 1729.5 | C10: 106.076 | D10: 1.3836 | E10: 4035.5 | F10: 107.4596 | G10: 3928.0404
A11: 2405 | B11: 1803.75 | C11: 110.63 | D11: 1.443 | E11: 4208.75 | F11: 112.073 | G11: 4096.677
A12: 2504 | B12: 1878 | C12: 115.184 | D12: 1.5024 | E12: 4382 | F12: 116.6864 | G12: 4265.3136
A13: 2603 | B13: 1952.25 | C13: 119.738 | D13: 1.5618 | E13: 4555.25 | F13: 121.2998 | G13: 4433.9502
A14: 2702 | B14: 2026.5 | C14: 124.292 | D14: 1.6212 | E14: 4728.5 | F14: 125.9132 | G14: 4602.5868
A15: 2801 | B15: 2100.75 | C15: 128.846 | D15: 1.6806 | E15: 4901.75 | F15: 130.5266 | G15: 4771.2234
A16: 2900 | B16: 2175 | C16: 133.4 | D16: 1.74 | E16: 5075 | F16: 135.14 | G16: 4939.86
A17: 2999 | B17: 2249.25 | C17: 137.954 | D17: 1.7994 | E17: 5248.25 | F17: 139.7534 | G17: 5108.4966
A18: 3098 | B18: 2323.5 | C18: 142.508 | D18: 1.8588 | E18: 5421.5 | F18: 144.3668 | G18: 5277.1332
A19: =SUM(A2:A18) -> 39202 | B19: =SUM(B2:B18) -> 29401.5 | C19: 1803.292 | D19: 23.5212 | E19: 68603.5 | F19: 1826.8132 | G19: 66776.6868
